bitfinex/quotes_ETHUSD_20241223
["timestamp","ask_amount","ask_price","bid_price","bid_amount"]
[1734988831519,3.0,3448.0,3446.9,3.91697]
[1734988831916,3.0,3448.0,3446.9,1.0159]
[1734988832221,1.18029637,3448.6,3447.4,3.96145]
[1734988832418,2.90006,3448.2,3447.4,1.0608]
[1734988832720,2.90041,3447.8,3447.6,0.57945831]
[1734988833021,0.8931,3447.5,3446.8,0.3508]
[1734988833176,2.90115,3446.9,3446.8,0.3508]
[1734988834825,5.90115,3446.9,3446.8,1e-05]
[1734988835126,7.34425,3446.9,3446.8,1e-05]
[1734988835732,7.34425,3446.9,3445.4,0.56834769]
[1734988835733,2.90233,3445.5,3445.4,0.56834769]
[1734988835889,2.90321,3444.5,3443.5,1.1133]
[1734988836091,2.93227216,3444.4,3443.6,0.59062329]
[1734988836358,0.02900216,3444.8,3443.6,0.59062329]
[1734988836636,0.02900216,3445.2,3443.6,0.59062329]
[1734988836934,2.90332,3444.4,3443.5,1.1133]
[1734988837127,2.90337,3444.3,3443.5,1.1133]
[1734988837330,2.90347,3444.2,3443.5,1.1133]
[1734988837503,2.90386,3443.7,3443.5,1.69781641]
[1734988837704,2.93286216,3443.7,3443.5,1.1133]
[1734988837930,0.02900216,3444.0,3442.2,4.6067759]
[1734988838137,2.90413,3443.4,3443.2,0.58166653]
[1734988838333,2.90393,3443.6,3442.4,1.70012398]
[1734988838532,2.9046,3442.9,3442.4,1.67405872]
[1734988838737,2.90465,3442.8,3442.4,1.101]
[1734988839119,2.90476,3442.7,3442.4,1.101]
[1734988839492,2.90457,3442.9,3442.4,1.101]
[1734988839735,2.90521,3442.1,3441.2,1.05]
[1734988839908,2.93431216,3442.0,3441.2,1.05]
[1734988840126,2.90478,3442.6,3441.2,1.05]
[1734988840304,2.90515,3442.2,3441.4,0.57879854]
[1734988840510,2.90515,3442.2,3441.2,1.05]
[1734988840713,2.90515,3442.2,3440.2,1.163729]
[1734988840714,2.0,3444.0,3441.4,1.05]
[1734988841045,0.8931,3443.9,3442.5,2.90484]
[1734988841248,2.90396,3443.6,3442.6,1.0056]
[1734988841446,2.90421,3443.3,3442.6,1.0056]
[1734988841652,2.9038,3443.8,3442.6,1.0056]
[1734988841846,2.90418,3443.4,3442.6,1.0056]
[1734988842048,2.90389,3443.7,3442.6,1.0056]
[1734988842249,2.90356,3444.1,3442.6,1.0056]
[1734988842250,2.90404,3443.5,3442.6,1.0056]
[1734988842959,2.90366,3444.0,3442.6,1.0056]
[1734988842960,2.90414,3443.4,3442.6,1.0056]
[1734988843144,2.93322216,3443.3,3442.6,1.0056]
[1734988843330,2.90408,3443.5,3442.6,1.0056]
[1734988843532,2.90384,3443.8,3442.7,0.02904504]
[1734988843758,2.90384,3443.8,3442.6,1.0056]
[1734988843912,3.0,3443.9,3442.6,1.0056]
[1734988844113,3.0,3443.9,3442.7,2.90468]
[1734988844413,2.90296,3444.8,3442.8,0.02904124]
[1734988844617,3.0,3444.3,3442.8,3.95171]
[1734988844882,2.9033,3444.4,3442.7,0.57903817]
[1734988844883,2.90307,3444.7,3443.1,0.55]
[1734988845156,0.8931,3444.9,3443.0,0.0471]
[1734988845459,0.02900216,3444.6,3443.0,0.0471]
[1734988845618,2.90351,3444.1,3443.6,0.5901204]
[1734988846051,0.02900216,3444.6,3443.6,0.5901204]
[1734988846229,2.90319,3444.5,3443.6,0.5901204]
[1734988846429,3.0,3444.4,3443.6,0.5901204]
[1734988846652,2.90326,3444.4,3443.6,0.5901204]
[1734988846862,2.90326,3444.4,3443.2,2.90422]
[1734988847043,2.90326,3444.4,3443.3,0.295132]
[1734988847241,2.90337,3444.3,3443.0,2.95152]
[1734988847443,2.90378,3443.8,3443.0,0.0471]
[1734988847618,2.90398,3443.6,3443.0,0.0471]
[1734988847819,0.02900216,3443.5,3443.0,0.0471]
[1734988848015,3.8931,3444.9,3443.0,0.0471]
[1734988848219,2.90316,3444.6,3443.2,2.9042]
[1734988848423,3.0,3444.5,3443.3,2.90416]
[1734988848720,2.90311,3444.6,3443.3,2.90416]
[1734988848946,2.90311,3444.6,3443.4,0.0290373]
[1734988849147,2.0,3445.8,3443.2,0.29513]
[1734988849148,1.0118,3445.5,3443.6,1.1103]
[1734988849471,1.0748,3446.2,3444.2,1.0363]
[1734988849676,0.02900216,3446.1,3444.5,0.55]
[1734988849974,2.90213,3445.8,3444.5,3.45315]
[1734988850184,2.90242,3445.4,3444.4,1.0363]
[1734988850323,2.90191,3446.0,3444.4,1.0363]
[1734988850324,0.02900216,3445.9,3444.4,3.93949]
[1734988850669,1.0748,3446.2,3444.4,1.446112]
[1734988850824,1.0228,3446.7,3445.2,2.90258]
[1734988851161,1.0228,3446.7,3444.6,1.0395]
[1734988851318,2.0,3446.4,3444.6,1.0395]
[1734988851526,0.02900216,3446.3,3444.6,1.0395]
[1734988851831,2.90258,3445.3,3444.6,1.0395]
[1734988852043,2.90258,3445.3,3443.6,0.02902856]
[1734988852044,1.0228,3446.7,3445.2,1.1158]
[1734988852235,2.0,3447.2,3445.2,1.1158]
[1734988852442,2.90173,3446.3,3445.2,1.1158]
[1734988852960,2.90121,3446.9,3445.3,0.57902135]
[1734988853188,1.0648,3447.9,3445.8,0.55]
[1734988853465,2.90082,3447.4,3446.0,3.45189]
[1734988853625,2.90064,3447.6,3446.0,3.45189]
[1734988853626,2.90057,3447.6,3446.1,1.0129]
[1734988853823,2.90057,3447.6,3446.4,2.90154]
[1734988854021,2.9004,3447.8,3446.5,2.90145]
[1734988854327,1.1121,3448.3,3446.7,2.90129]
[1734988854659,1.1121,3448.3,3446.6,0.57900787]
[1734988854832,0.02900216,3448.6,3447.1,1.0225]
[1734988855240,2.90024,3448.0,3447.1,1.0225]
[1734988855440,0.02900216,3447.9,3447.1,1.0225]
[1734988855644,2.90056,3447.6,3447.1,1.0225]
[1734988855845,0.02900216,3448.1,3447.1,1.0225]
[1734988856041,3.0,3447.9,3445.9,1.0465]
[1734988856369,0.02900216,3447.8,3445.9,1.0465]
[1734988856667,2.90054,3447.7,3445.9,1.0465]
[1734988856880,2.90119,3446.9,3445.9,1.0465]
[1734988857054,0.02900216,3447.3,3445.9,1.0465]
[1734988857246,3.0,3447.6,3445.9,1.0465]
[1734988857247,2.901,3447.1,3445.9,1.0465]
[1734988857650,2.90081,3447.4,3446.2,0.5706022]
[1734988857849,2.90056,3447.7,3446.3,1.0465]
[1734988858172,1.0243,3448.0,3446.3,1.0465]
[1734988858173,2.90023,3448.0,3447.1,1.0465]
[1734988858339,2.89992,3448.4,3447.1,1.0465]
[1734988858536,1.0243,3448.7,3447.1,1.0465]
[1734988858778,3.43842374,3449.4,3447.1,1.0465]
[1734988858779,1.0243,3449.2,3447.4,2.90065]
[1734988859086,1.0243,3449.2,3447.2,0.02900612]
[1734988859087,1.0243,3449.2,3447.5,0.02900296]
[1734988859294,3.43842374,3450.6,3448.1,1.0966]
[1734988859586,2.92704216,3450.6,3449.2,1.0966]
[1734988859736,2.8978,3450.9,3449.2,1.0966]
[1734988859935,4.48841185,3450.3,3449.2,1.0966]
[1734988860338,2.89741,3451.4,3450.1,2.89844]
[1734988860536,2.89722,3451.6,3450.3,2.89829]
[1734988860785,0.30243019,3451.8,3450.4,0.02897657]
[1734988861073,0.30243019,3451.8,3450.2,1.1052]
[1734988861074,0.02900216,3451.7,3450.2,1.1052]
[1734988861398,0.30243019,3451.8,3450.3,2.89829]
[1734988861399,2.89724,3451.6,3450.3,2.89829]
[1734988861957,0.02900216,3451.5,3450.2,1.1052]
[1734988862137,1.0935,3451.4,3450.2,1.1052]
[1734988862337,0.02900216,3451.3,3450.2,1.1052]
[1734988862579,2.89754,3451.2,3450.2,1.1052]
[1734988862786,2.89822,3450.4,3450.2,1.1052]
[1734988862972,0.02900216,3450.9,3450.2,1.1052]
[1734988863175,4.069,3451.9,3450.2,1.1052]
[1734988863389,0.172912,3452.0,3449.4,3.14898]
[1734988863549,2.89721,3451.6,3450.3,1.0235]
[1734988863755,2.89721,3451.6,3450.3,3.92179]
[1734988864068,0.172912,3452.0,3450.3,1.0235]
[1734988864716,0.172912,3452.0,3450.6,1.0235]
[1734988864998,0.172912,3452.0,3451.8,2.89703]
[1734988865180,2.89508,3454.2,3451.8,2.89703]
[1734988865181,1.44998206,3454.1,3452.0,1.5735]
[1734988865493,1.44998206,3454.1,3451.3,6.33585374]
[1734988865494,0.02900216,3454.0,3452.1,1.0235]
[1734988865653,2.89633,3452.7,3452.1,1.0235]
[1734988865848,0.02900216,3453.1,3452.1,1.0235]
[1734988866089,2.8962,3452.8,3452.1,1.0235]
[1734988866310,2.89636,3452.6,3452.1,1.0235]
[1734988866599,2.8962,3452.8,3451.5,1.0268]
[1734988866774,2.89619,3452.9,3451.5,1.0268]
[1734988866981,2.89613,3452.9,3451.5,1.0268]
[1734988867173,2.89584,3453.3,3451.6,0.02896605]
[1734988867375,2.89552,3453.6,3451.7,2.89711]
[1734988867580,8.38e-06,3454.1,3452.0,1.0268]
[1734988867752,2.89573,3453.4,3452.0,1.0268]
[1734988868090,0.02900216,3453.3,3452.0,1.0268]
[1734988868296,2.89527,3453.9,3452.1,0.55]
[1734988868616,2.89631,3452.7,3452.4,1.0811]
[1734988868791,2.89619,3452.9,3452.4,1.0811]
[1734988868992,2.89601,3453.1,3452.4,1.0811]
[1734988869392,2.89605,3453.0,3452.4,1.0811]
[1734988869709,2.89566,3453.5,3452.4,1.0811]
[1734988870121,2.89537,3453.8,3452.4,1.0811]
[1734988870273,8.38e-06,3454.1,3452.5,0.5789593]
[1734988870618,8.38e-06,3454.1,3452.9,1.0287]
[1734988870755,2.89524,3454.0,3452.9,1.0287]
[1734988871068,2.89539,3453.8,3452.9,1.0287]
[1734988871452,0.02901054,3454.1,3452.9,1.0287]
[1734988871453,2.89545,3453.7,3452.9,1.0287]
[1734988871652,2.89561,3453.5,3452.9,1.0287]
[1734988871905,0.02900216,3453.4,3452.9,1.0287]
[1734988872112,3.0,3453.9,3452.9,1.0287]
[1734988872272,3.02900216,3453.9,3452.9,1.0287]
[1734988872455,2.89601,3453.1,3452.2,1.0221]
[1734988872851,0.02900216,3453.0,3452.2,1.0221]
[1734988873051,2.89594,3453.2,3452.2,1.0221]
[1734988873465,3.0,3453.8,3452.2,1.0221]
[1734988873811,3.00000838,3454.1,3452.5,1.0592]
[1734988874050,2.89554,3453.6,3452.8,1.0592]
[1734988874184,0.02900216,3453.5,3452.8,1.0592]
[1734988874385,2.89569,3453.4,3452.8,1.0592]
[1734988874624,0.02900216,3453.3,3452.8,1.0592]
[1734988874808,0.02900216,3453.9,3452.8,1.0592]
[1734988875002,2.89611,3452.9,3452.8,1.0592]
[1734988875203,2.89552,3453.6,3452.3,1.0592]
[1734988875511,2.0,3453.8,3450.1,2.89846]
[1734988875512,2.92461216,3453.5,3450.9,1.0592]
[1734988875714,2.89637,3452.6,3450.9,4.35554463]
[1734988875914,2.89674,3452.2,3450.9,3.95693]
[1734988876094,2.89678,3452.1,3450.9,3.95693]
[1734988876291,2.8967,3452.3,3450.9,1.0592]
[1734988876502,2.89653,3452.4,3450.9,1.0592]
[1734988876697,2.89659,3452.4,3451.0,2.92667484]
[1734988876910,2.89603,3453.0,3451.2,1.0592]
[1734988877109,2.89672,3452.2,3451.2,1.0592]
[1734988877358,0.02900216,3452.6,3451.2,1.0592]
[1734988877656,1.1011,3453.6,3451.4,1.0592]
[1734988877857,2.89628,3452.8,3451.6,2.89718]
[1734988878002,2.89628,3452.8,3451.7,4.351938]
[1734988878211,2.89628,3452.8,3451.7,1.454838]
[1734988878405,1.1011,3453.6,3451.8,0.0289641]
[1734988878406,2.89602,3453.1,3451.8,0.0289641]
[1734988878762,2.89602,3453.1,3451.8,2.89702]
[1734988878763,2.89598,3453.1,3451.8,2.89702]
[1734988879053,2.89544,3453.7,3452.4,2.89652]
[1734988879257,2.89557,3453.6,3452.4,0.395572]
[1734988879464,2.89557,3453.6,3452.4,2.89653]
[1734988879623,0.02900216,3453.9,3452.2,1.0592]
[1734988879971,8.38e-06,3454.1,3451.6,5.96114]
[1734988879972,8.38e-06,3454.1,3452.3,1.08815646]
[1734988880274,8.38e-06,3454.1,3452.4,1.0552]
[1734988880478,8.38e-06,3454.1,3453.0,1.0552]
[1734988880676,8.38e-06,3454.1,3453.3,1.0552]
[1734988881179,8.38e-06,3454.1,3453.5,3.95079]
[1734988881338,8.38e-06,3454.1,3453.5,1.0552]
[1734988881539,8.38e-06,3454.1,3453.7,1.0552]
[1734988882084,8.38e-06,3454.1,3453.8,2.89533]
[1734988882243,8.38e-06,3454.1,3453.7,1.0552]
[1734988882444,8.38e-06,3454.1,3453.7,3.95059]
[1734988882618,8.38e-06,3454.1,3453.7,1.0552]
[1734988884121,8.38e-06,3454.1,3453.8,0.02894933]
[1734988884319,8.38e-06,3454.1,3453.7,1.0552]
[1734988885594,2.92416054,3454.1,3453.7,1.0552]
[1734988885793,0.172912,3455.5,3454.8,1.0556]
[1734988886201,2.89268,3457.0,3455.5,2.89385]
[1734988886532,0.30245298,3457.3,3455.9,1.0556]
[1734988886652,0.30245298,3457.3,3456.4,2.89317]
[1734988886855,0.30245298,3457.3,3456.4,2.89315]
[1734988887094,0.30245298,3457.3,3456.5,1.0556]
[1734988887459,0.30245298,3457.3,3456.6,2.9219245]
[1734988887843,0.30245298,3457.3,3456.6,0.39775245]
[1734988888007,2.89239,3457.4,3456.5,1.0556]
[1734988888217,2.89191,3458.0,3456.5,1.0556]
[1734988888415,2.89227,3457.5,3456.5,1.0056]
[1734988888554,2.89211,3457.7,3456.5,1.0056]
[1734988888975,2.89232,3457.5,3456.5,1.0056]
[1734988889181,2.89191,3458.0,3456.5,1.0056]
[1734988889576,2.89228,3457.5,3456.5,1.0056]
[1734988889856,2.8927,3457.0,3456.5,1.0056]
[1734988891163,2.89252,3457.2,3456.5,6.7914]
[1734988891369,2.89268,3457.0,3456.5,6.7914]
[1734988891563,3.94879,3457.6,3456.5,5.7858]
[1734988891863,2.89301,3456.6,3456.5,5.7858]
[1734988892353,10.43005746,3456.6,3456.5,9.46e-06]
[1734988892557,10.77826146,3456.6,3456.5,9.46e-06]
[1734988892999,2.89438,3455.0,3454.4,0.5833043]
[1734988893197,2.89387,3455.6,3454.4,0.5833043]
[1734988893521,1.0824,3456.1,3454.4,0.5833043]
[1734988893522,2.89396,3455.5,3454.4,0.5833043]
[1734988893792,2.89402,3455.4,3454.4,0.5833043]
[1734988894126,2.89368,3455.8,3454.2,1.0411]
[1734988894333,2.89368,3455.8,3454.6,2.89466]
[1734988894621,2.89368,3455.8,3454.4,1.0411]
[1734988894622,2.89318,3456.4,3454.4,1.0411]
[1734988894908,2.89386,3455.6,3454.4,1.0411]
[1734988895116,2.89349,3456.1,3454.4,1.0411]
[1734988895278,2.89388,3455.6,3454.4,1.0411]
[1734988895458,4.0824,3456.6,3454.4,1.0411]
[1734988895656,3.0,3456.4,3454.4,1.0411]
[1734988896157,2.89326,3456.3,3454.4,1.0411]
[1734988896362,2.89402,3455.4,3454.4,1.0411]
[1734988896758,3.0,3456.2,3454.4,1.0411]
[1734988897062,3.0,3456.2,3452.8,0.25]
[1734988897063,1.0824,3455.7,3454.0,1.0411]
[1734988897372,2.89462,3454.7,3454.0,1.0411]
[1734988897575,3.46749172,3455.6,3454.0,1.0411]
[1734988897783,2.89514,3454.1,3453.5,1.0411]
[1734988898422,1.0824,3455.1,3453.8,0.5765193]
[1734988898715,2.89527,3453.9,3453.8,0.5765193]
[1734988898859,3.0824,3455.1,3453.5,1.0411]
[1734988898860,3.0,3455.0,3453.5,1.0411]
[1734988899065,3.0,3454.4,3453.5,1.0411]
[1734988899283,3.0,3455.1,3453.6,0.59886069]
[1734988899582,3.0,3455.2,3453.6,3.62942338]
[1734988899826,3.98019,3455.5,3453.7,2.89544]
[1734988900028,2.89403,3455.4,3454.3,1.0249]
[1734988900185,2.89404,3455.4,3454.3,1.0249]
[1734988900407,1.0862,3456.1,3454.4,2.89484]
[1734988900686,2.8938,3455.7,3454.5,2.89473]
[1734988900919,2.89397,3455.5,3454.3,4.31182]
[1734988901244,2.89402,3455.4,3454.3,1.0249]
[1734988901447,2.89419,3455.2,3454.3,1.0249]
[1734988901584,1.0862,3456.1,3454.3,1.0249]
[1734988901938,1.0862,3456.6,3454.4,0.55]
[1734988902143,1.0862,3456.6,3455.1,1.0249]
[1734988902347,2.89352,3456.0,3455.1,1.0249]
[1734988902646,1.0862,3456.6,3454.6,1.0249]
[1734988902846,2.8939,3455.6,3454.6,1.0249]
[1734988903140,2.89412,3455.3,3454.6,1.0249]
[1734988903440,2.89424,3455.2,3454.6,1.0249]
[1734988903804,2.89326,3456.3,3454.6,1.0249]
[1734988904006,3.0,3455.9,3454.6,1.0249]
[1734988904322,2.89411,3455.3,3454.6,1.0249]
[1734988904499,2.89394,3455.5,3454.6,1.0249]
[1734988905022,2.89386,3455.6,3454.6,1.0249]
[1734988905362,2.89394,3455.5,3454.6,1.0249]
[1734988905622,2.89393,3455.6,3454.6,1.0249]
[1734988906885,3.97927,3456.6,3454.7,1.13724267]
[1734988907085,1.0862,3456.6,3454.8,1.1083]
[1734988907354,1.07050279,3457.1,3455.1,1.1083]
[1734988907549,1.07050279,3457.1,3454.6,0.44887851]
[1734988907550,2.89276,3456.9,3455.8,1.1083]
[1734988907711,0.00800279,3457.1,3455.9,2.89358]
[1734988907907,2.89271,3457.0,3455.9,2.89358]
[1734988908087,0.00800279,3457.1,3455.8,1.1083]
[1734988909413,2.89289,3456.8,3455.9,0.57293886]
[1734988910089,2.90062279,3457.1,3456.0,1.0416]
[1734988910732,2.89268,3457.0,3456.0,1.0416]
[1734988911025,0.00800279,3457.1,3456.1,2.89341]
[1734988911229,0.00800279,3457.1,3456.1,2.89343]
[1734988912026,2.90065279,3457.1,3456.0,1.0416]
[1734988912246,2.89269,3457.0,3456.0,1.0416]
[1734988912550,2.89278,3456.9,3456.0,1.0416]
[1734988912752,0.00800279,3457.1,3456.0,1.0416]
[1734988912893,2.89302,3456.6,3456.0,1.0416]
[1734988913095,2.89279,3456.9,3456.0,1.0416]
[1734988913733,2.8931,3456.5,3456.0,1.0416]
[1734988914047,2.89318,3456.4,3456.0,1.0416]
[1734988914212,2.89343,3456.1,3455.9,0.58598348]
[1734988915418,3.0,3456.9,3455.9,0.58598348]
[1734988915603,3.0,3456.7,3455.4,1.0907]
[1734988915804,1.0561,3456.4,3454.2,2.89498]
[1734988916009,3.0,3456.0,3454.7,0.56603116]
[1734988916221,3.43842374,3455.6,3454.3,1.0463]
[1734988916417,5.89452,3454.8,3453.2,1.1089]
[1734988916635,1.0641,3454.9,3453.3,0.57372079]
[1734988916842,2.89469,3454.6,3453.3,0.57372079]
[1734988917198,2.8948,3454.5,3453.3,0.57372079]
[1734988917396,2.8946,3454.7,3453.3,0.57372079]
[1734988917596,1.0641,3454.9,3453.3,0.57372079]
[1734988917801,2.89488,3454.4,3453.3,3.46948079]
[1734988918043,2.89469,3454.6,3453.4,2.89567]
[1734988918330,3.0,3455.2,3453.4,3.93668]
[1734988918531,2.89472,3454.6,3453.5,0.02895222]
[1734988918931,2.89472,3454.6,3453.4,3.93668]
[1734988919134,3.0,3455.2,3453.4,1.0411]
[1734988919323,2.89435,3455.1,3453.6,1.0411]
[1734988919528,3.0,3455.2,3453.6,1.0411]
[1734988919839,1.1266,3455.4,3454.3,1.1166]
[1734988920034,2.89427,3455.1,3454.3,1.1166]
[1734988920243,2.8947,3454.6,3454.3,1.1166]
[1734988920461,2.89478,3454.5,3454.3,1.1166]
[1734988920737,1.1266,3455.4,3454.3,1.1166]
[1734988921034,2.89385,3455.7,3454.4,1.15344777]
[1734988921258,4.07345637,3456.5,3454.3,1.1166]
[1734988921259,2.31419637,3456.5,3455.0,2.89428]
[1734988921471,2.31419637,3456.5,3454.7,1.1245]
[1734988921662,2.89435,3455.0,3454.7,1.1245]
[1734988921799,2.89343,3456.1,3454.7,1.1245]
[1734988921800,2.89392,3455.6,3454.7,1.1245]
[1734988921999,3.43842374,3456.2,3454.7,1.1245]
[1734988922241,2.8942,3455.2,3454.7,1.1245]
[1734988922669,2.89402,3455.4,3454.7,1.1245]
[1734988922957,2.8936,3455.9,3454.7,1.1245]
[1734988923238,4.02705,3456.5,3454.7,1.2938638]
[1734988923410,2.89343,3456.2,3454.9,2.89436]
[1734988923610,2.22889637,3456.9,3455.0,0.0289375]
[1734988923920,2.89293,3456.7,3455.5,1.102]
[1734988924131,1.18029637,3456.9,3455.5,1.102]
[1734988924470,4.89268,3457.0,3455.5,1.102]
[1734988924758,2.89334,3456.3,3455.5,1.102]
[1734988924903,2.89301,3456.7,3455.5,1.2697603]
[1734988925107,2.89271,3457.0,3455.5,1.2697603]
[1734988925424,2.89336,3456.2,3455.5,1.102]
[1734988925604,5.78552,3456.9,3455.5,1.102]
[1734988925947,2.89268,3457.0,3455.5,1.102]
[1734988925948,2.81904456,3457.3,3455.6,2.92276715]
[1734988926162,1.0486,3457.3,3455.7,2.92267429]
[1734988926297,2.89283,3456.9,3455.8,2.89367]
[1734988926499,2.89269,3457.0,3455.9,1.432167]
[1734988926817,2.90060279,3457.1,3456.0,2.8935]
[1734988927023,0.00800279,3457.1,3456.1,2.89343]
[1734988927805,0.00800279,3457.1,3456.6,1.1428]
[1734988928120,2.89268,3457.0,3456.6,1.1428]
[1734988928513,2.89268,3457.0,3456.2,1.1428]
[1734988928722,0.00800279,3457.1,3456.2,1.1428]
[1734988929837,2.89281,3456.9,3456.2,1.1428]
[1734988930138,2.89293,3456.7,3456.2,1.1428]
[1734988930905,2.89301,3456.6,3456.2,1.1428]
[1734988931108,0.00800279,3457.1,3456.2,1.1428]
[1734988931306,0.00800279,3457.1,3456.2,4.03614]
[1734988931507,0.00800279,3457.1,3456.3,0.6159763]
[1734988931776,0.00800279,3457.1,3456.7,1.1428]
[1734988935449,0.00800279,3457.1,3456.7,4.03572]
[1734988935654,0.00800279,3457.1,3456.7,1.1428]
[1734988936725,2.90061279,3457.1,3456.3,1.65004635]
[1734988936931,0.00800279,3457.1,3456.3,0.58704635]
[1734988937149,2.89321,3456.4,3455.8,1.063]
[1734988937319,2.89327,3456.3,3455.8,1.063]
[1734988937855,2.89327,3456.3,3454.4,4.02930393]
[1734988937856,2.89326,3456.3,3454.9,0.56644917]
[1734988938072,2.89431,3455.1,3454.6,1.063]
[1734988938262,2.89451,3454.9,3454.4,1.13446393]
[1734988938561,2.89455,3454.8,3454.3,1.1166]
[1734988938886,2.89332,3456.3,3454.8,1.063]
[1734988939084,1.0525,3456.3,3454.8,1.063]
[1734988939223,2.89327,3456.3,3454.8,1.2277254]
[1734988939436,1.0525,3456.8,3454.9,0.028938]
[1734988939689,3.0,3456.9,3455.7,1.063]
[1734988939883,1.18029637,3456.2,3455.7,1.063]
[1734988940488,1.18029637,3456.2,3455.7,3.95676]
[1734988940691,2.89288,3456.8,3455.7,4.41040903]
[1734988940892,2.89292,3456.8,3455.7,1.063]
[1734988941101,2.89294,3456.7,3455.7,1.063]
[1734988941304,2.89318,3456.4,3455.7,1.063]
[1734988941589,2.89302,3456.6,3455.7,1.063]
[1734988941793,3.43842374,3457.0,3455.7,1.063]
[1734988941990,2.89326,3456.4,3455.7,1.063]
[1734988942137,2.89326,3456.4,3453.7,0.25]
[1734988942138,2.89355,3456.0,3455.3,1.6751682]
[1734988942339,3.95226,3456.3,3454.5,2.89477]
[1734988942676,2.89397,3455.5,3454.5,0.510097]
[1734988942998,4.059,3456.3,3454.6,0.57640147]
[1734988943339,3.1497,3456.8,3454.8,1.1355]
[1734988943538,2.89342,3456.2,3454.8,1.1355]
[1734988943848,2.89342,3456.2,3455.1,2.89424]
[1734988944061,2.89354,3456.0,3454.9,2.89443]
[1734988944972,5.43842374,3456.4,3454.8,1.1355]
[1734988945179,3.43842374,3455.8,3454.6,0.57640147]
[1734988945380,2.89478,3454.5,3454.3,1.1166]
[1734988945590,2.89485,3454.4,3454.3,1.1166]
[1734988945940,2.0,3455.2,3454.3,1.1166]
[1734988946147,1.0864,3455.5,3454.3,1.1166]
[1734988946548,1.18029637,3455.6,3454.4,1.0733]
[1734988946549,2.89402,3455.4,3454.4,1.0733]
[1734988946840,2.89411,3455.3,3454.4,1.0733]
[1734988947053,1.18029637,3455.6,3454.4,1.0733]
[1734988947254,3.0,3455.7,3454.4,1.0733]
[1734988947462,2.89446,3454.9,3454.4,1.0733]
[1734988947653,2.89407,3455.4,3454.4,1.0733]
[1734988948040,2.89417,3455.3,3454.4,1.0733]
[1734988948273,3.0,3455.9,3454.4,1.34929774]
[1734988948574,2.89411,3455.3,3454.4,1.0733]
[1734988948748,1.18029637,3455.6,3454.4,1.0733]
[1734988948942,2.89407,3455.4,3454.4,1.0733]
[1734988949138,2.89407,3455.4,3454.3,1.1166]
[1734988949139,4.0749,3455.3,3454.3,1.1166]
[1734988949398,2.89485,3454.5,3454.3,1.1166]
[1734988949599,2.89485,3454.4,3454.3,1.1166]
[1734988950303,2.89464,3454.7,3454.3,1.1166]
[1734988950614,2.89444,3454.9,3454.3,1.1166]
[1734988950910,5.894,3455.5,3454.3,1.1166]
[1734988950911,1.18029637,3455.2,3454.3,1.1166]
[1734988951310,2.89457,3454.8,3454.3,1.1166]
[1734988951677,3.0,3455.6,3454.3,1.1166]
[1734988951877,2.89427,3455.1,3454.3,1.1166]
[1734988952099,3.0,3455.5,3454.6,1.1477]
[1734988952302,2.89386,3455.6,3454.6,1.1477]
[1734988952616,4.07407637,3455.7,3454.6,1.1477]
[1734988952784,1.18029637,3456.0,3454.7,1.159308]
[1734988952990,2.89411,3455.3,3454.6,1.1477]
[1734988953315,2.89411,3455.3,3454.6,2.307008]
[1734988953502,2.89425,3455.2,3454.6,1.1477]
[1734988954099,2.89425,3455.2,3454.4,1.159428]
[1734988954100,3.0,3455.5,3454.4,1.159428]
[1734988954301,3.0,3455.5,3454.3,1.1166]
[1734988954517,3.0,3455.3,3454.3,1.1166]
[1734988955216,3.0,3455.3,3454.3,5.170958]
[1734988955717,2.89406,3455.4,3454.3,5.85425681]
[1734988955924,4.18029637,3455.8,3454.3,2.95932681]
[1734988956219,3.0,3455.5,3454.3,2.276028]
[1734988956383,3.00897574,3454.8,3454.3,1.1166]
[1734988956588,5.0,3455.1,3454.3,1.1166]
[1734988956589,5.90382574,3454.4,3454.3,1.1166]
[1734988956784,2.89485,3454.4,3454.3,1.1166]
[1734988957212,5.89485,3454.4,3454.3,1.1166]
[1734988957728,3.0,3454.7,3454.3,1.1166]
[1734988957902,2.89454,3454.8,3454.3,1.1166]
[1734988958102,2.89438,3455.0,3454.3,1.1166]
[1734988958289,3.0,3454.9,3454.3,1.1166]
[1734988958624,1.18029637,3455.2,3454.3,4.35012]
[1734988958833,4.07431637,3455.4,3454.3,4.35012]
[1734988959197,2.89412,3455.3,3454.3,4.35012]
[1734988959413,1.55861862,3455.4,3454.3,1.1166]
[1734988959629,2.89485,3454.4,3454.3,1.1166]
[1734988960134,2.8947,3454.6,3454.3,1.1166]
[1734988960648,2.89477,3454.5,3454.3,1.1166]
[1734988961186,1.18029637,3455.4,3454.3,1.1166]
[1734988961822,2.89423,3455.2,3454.3,1.1166]
[1734988962031,2.89404,3455.4,3454.3,1.1166]
[1734988962340,1.18029637,3455.6,3454.5,1.123]
[1734988962534,1.18029637,3455.6,3454.6,2.89465]
[1734988963149,4.07415637,3455.6,3454.6,2.89465]
[1734988963309,1.18029637,3455.6,3454.5,1.123]
[1734988963508,2.36059274,3455.9,3454.5,1.123]
[1734988963509,2.8943,3455.1,3454.5,1.123]
[1734988964021,2.89435,3455.0,3454.5,1.123]
[1734988964225,2.0,3455.7,3454.5,1.123]
[1734988964444,3.4362397,3455.9,3454.5,1.123]
[1734988964645,2.89361,3455.9,3454.8,2.89445]
[1734988964835,2.89361,3455.9,3454.5,1.34696]
[1734988965160,1.18029637,3456.0,3454.6,1.09324205]
[1734988965334,1.18029637,3456.0,3455.2,1.0643]
[1734988965864,4.07339637,3456.5,3455.4,1.0643]
[1734988966156,1.18029637,3456.5,3455.4,1.0643]